[Event "*** Titled Tuesday Blitz"]
[Site "Chess.com"]
[Date "2019.10.01"]
[Round "8"]
[White "arjwezhrtdrz"]
[Black "dopolian"]
[Result "0-1"]
[WhiteElo "2095"]
[BlackElo "2351"]
[TimeControl "180+2"]
[EndTime "15:00:08 PDT"]
[Termination "dopolian won by resignation"]

1. e4 {[%clk 0:02:55.9]} 1... Nc6 {[%clk 0:02:59.7]} 2. Nf3 {[%clk 0:02:54.3]}
2... e5 {[%clk 0:03:00.7]} 3. Nc3 {[%clk 0:02:54.9]} 3... Nf6 {[%clk 0:03:01.8]}
4. Bb5 {[%clk 0:02:55.4]} 4... Bc5 {[%clk 0:03:02.7]} 5. O-O {[%clk 0:02:55.9]}
5... O-O {[%clk 0:03:03.5]} 6. Nxe5 {[%clk 0:02:56.5]} 6... Nxe5 {[%clk
0:03:05.4]} 7. d4 {[%clk 0:02:57.1]} 7... Bd6 {[%clk 0:03:06.8]} 8. f4 {[%clk
0:02:57.9]} 8... Nc6 {[%clk 0:02:51.3]} 9. e5 {[%clk 0:02:56.2]} 9... Bb4 {[%clk
0:02:40.3]} 10. d5 {[%clk 0:02:47]} 10... Bc5+ {[%clk 0:01:50.1]} 11. Kh1 {[%clk
0:02:31.1]} 11... Nd4 {[%clk 0:01:40.8]} 12. exf6 {[%clk 0:02:22.2]} 12... Qxf6
{[%clk 0:01:40.9]} 13. Bd3 {[%clk 0:01:48.1]} 13... Nf5 {[%clk 0:01:26.7]} 14.
Ne4 {[%clk 0:00:30.8]} 14... Qh6 {[%clk 0:01:14.6]} 15. Nxc5 {[%clk 0:00:30.9]}
15... Ng3+ {[%clk 0:01:15.8]} 16. Kg1 {[%clk 0:00:32.1]} 16... Nxf1 {[%clk
0:01:17.4]} 17. Qxf1 {[%clk 0:00:30.5]} 17... Qb6 {[%clk 0:01:12.5]} 18. Qf2
{[%clk 0:00:25.5]} 18... d6 {[%clk 0:01:13.5]} 19. Nb3 {[%clk 0:00:26.5]} 19...
Bg4 {[%clk 0:01:08.5]} 20. Be3 {[%clk 0:00:20.6]} 20... Qb4 {[%clk 0:01:05.8]}
21. a3 {[%clk 0:00:09.4]} 21... Qa4 {[%clk 0:01:06.9]} 22. h3 {[%clk 0:00:10.2]}
22... Bd7 {[%clk 0:00:56]} 23. Bd4 {[%clk 0:00:11.1]} 23... Bb5 {[%clk
0:00:35.3]} 24. Bxb5 {[%clk 0:00:10.2]} 24... Qxb5 {[%clk 0:00:37.2]} 25. Qf3
{[%clk 0:00:09.4]} 25... Rae8 {[%clk 0:00:32]} 26. Bc3 {[%clk 0:00:09.4]} 26...
Qc4 {[%clk 0:00:22.3]} 27. Nd4 {[%clk 0:00:10.2]} 27... f6 {[%clk 0:00:15.3]}
28. Kh2 {[%clk 0:00:10.9]} 28... Rf7 {[%clk 0:00:12.7]} 29. Ne6 {[%clk
0:00:11.2]} 29... Qb5 {[%clk 0:00:08.9]} 30. Qd3 {[%clk 0:00:11.6]} 30... Qd7
{[%clk 0:00:07.8]} 31. f5 {[%clk 0:00:12.1]} 31... c6 {[%clk 0:00:07.7]} 32. Re1
{[%clk 0:00:12.5]} 32... c5 {[%clk 0:00:08]} 33. b3 {[%clk 0:00:13.1]} 33... b5
{[%clk 0:00:08.8]} 34. a4 {[%clk 0:00:13.8]} 34... bxa4 {[%clk 0:00:09.3]} 35.
bxa4 {[%clk 0:00:15.2]} 35... Qxa4 {[%clk 0:00:10.5]} 36. Ra1 {[%clk 0:00:16]}
36... Qd7 {[%clk 0:00:10.6]} 37. Ra6 {[%clk 0:00:16.5]} 37... Rb8 {[%clk
0:00:10.5]} 38. Rc6 {[%clk 0:00:17.6]} 38... Rc8 {[%clk 0:00:10.2]} 39. Rxc8+
{[%clk 0:00:17.9]} 39... Qxc8 {[%clk 0:00:12.1]} 40. Qb5 {[%clk 0:00:18.7]}
40... Rb7 {[%clk 0:00:08.3]} 41. Qc6 {[%clk 0:00:19.3]} 41... Qd7 {[%clk
0:00:09.1]} 42. Qxd7 {[%clk 0:00:20.3]} 42... Rxd7 {[%clk 0:00:11]} 43. Ba5
{[%clk 0:00:21.3]} 43... Kf7 {[%clk 0:00:11.1]} 44. Kg3 {[%clk 0:00:22.1]} 44...
g6 {[%clk 0:00:12.1]} 45. Kf4 {[%clk 0:00:22.7]} 45... Ke7 {[%clk 0:00:10.1]}
46. Ke4 {[%clk 0:00:23.7]} 46... Rb7 {[%clk 0:00:10]} 47. Bc3 {[%clk 0:00:24.1]}
47... Rb1 {[%clk 0:00:09.3]} 48. g4 {[%clk 0:00:25]} 48... Rh1 {[%clk
0:00:09.5]} 49. fxg6 {[%clk 0:00:23.1]} 49... hxg6 {[%clk 0:00:10.6]} 50. Nf4
{[%clk 0:00:24.4]} 50... Kf7 {[%clk 0:00:12.1]} 51. Bd2 {[%clk 0:00:23.1]} 51...
Rh2 {[%clk 0:00:12.8]} 52. Be3 {[%clk 0:00:24.2]} 52... Rxc2 {[%clk 0:00:13.3]}
53. Nd3 {[%clk 0:00:25.4]} 53... a5 {[%clk 0:00:12.9]} 54. Kf3 {[%clk
0:00:23.9]} 54... a4 {[%clk 0:00:13.4]} 55. Nc1 {[%clk 0:00:21.6]} 55... a3
{[%clk 0:00:12.5]} 56. Nb3 {[%clk 0:00:22.3]} 56... a2 {[%clk 0:00:07.9]} 57.
Bf4 {[%clk 0:00:22.9]} 57... Rc3+ {[%clk 0:00:08.3]} 58. Ke4 {[%clk 0:00:23]}
58... Rxb3 {[%clk 0:00:09.1]} 0-1

[Event "*** Titled Tuesday Blitz"]
[Site "Chess.com"]
[Date "2019.10.01"]
[Round "8"]
[White "doons21"]
[Black "VerdeNotte"]
[Result "0-1"]
[WhiteElo "2607"]
[BlackElo "2777"]
[TimeControl "180+2"]
[EndTime "15:00:42 PDT"]
[Termination "VerdeNotte won by resignation"]

1. e4 {[%clk 0:03:01.9]} 1... d6 {[%clk 0:03:00.3]} 2. d4 {[%clk 0:03:02.5]}
2... Nf6 {[%clk 0:03:01.8]} 3. Nc3 {[%clk 0:03:03.6]} 3... g6 {[%clk 0:03:03.4]}
4. f4 {[%clk 0:03:04.5]} 4... Bg7 {[%clk 0:03:02.9]} 5. e5 {[%clk 0:03:05.8]}
5... dxe5 {[%clk 0:03:02.6]} 6. dxe5 {[%clk 0:03:06.6]} 6... Qxd1+ {[%clk
0:03:03.5]} 7. Kxd1 {[%clk 0:03:08.5]} 7... Nfd7 {[%clk 0:02:53.9]} 8. Nd5
{[%clk 0:03:09.7]} 8... Kd8 {[%clk 0:02:54.8]} 9. Nf3 {[%clk 0:03:08.9]} 9... c6
{[%clk 0:02:55.9]} 10. Ne3 {[%clk 0:03:06.6]} 10... Kc7 {[%clk 0:02:55]} 11. Bc4
{[%clk 0:03:05.6]} 11... Nc5 {[%clk 0:02:49.3]} 12. a4 {[%clk 0:02:52.7]} 12...
Be6 {[%clk 0:02:49]} 13. b3 {[%clk 0:02:51.7]} 13... Nbd7 {[%clk 0:02:43.6]} 14.
Bb2 {[%clk 0:02:49.8]} 14... Rad8 {[%clk 0:02:42.6]} 15. Ke2 {[%clk 0:02:50.3]}
15... Nb6 {[%clk 0:02:43.7]} 16. Ng5 {[%clk 0:02:19.5]} 16... Bxc4+ {[%clk
0:02:40]} 17. bxc4 {[%clk 0:02:17.5]} 17... Nbxa4 {[%clk 0:02:38]} 18. Ba3
{[%clk 0:02:04.2]} 18... Rd4 {[%clk 0:02:39]} 19. g3 {[%clk 0:01:26.6]} 19... f6
{[%clk 0:02:40]} 20. Nf3 {[%clk 0:01:23]} 20... Rd7 {[%clk 0:02:31.4]} 21. Bxc5
{[%clk 0:01:21.9]} 21... Nxc5 {[%clk 0:02:31.7]} 22. Rxa7 {[%clk 0:01:23.8]}
22... fxe5 {[%clk 0:02:27.8]} 23. fxe5 {[%clk 0:01:22.9]} 23... Ne4 {[%clk
0:02:04.3]} 24. Ra3 {[%clk 0:01:10.7]} 24... Rf8 {[%clk 0:02:01.1]} 25. Rd1
{[%clk 0:01:06]} 25... Rxd1 {[%clk 0:01:52.4]} 26. Nxd1 {[%clk 0:01:07.9]} 26...
Nc5 {[%clk 0:01:38.7]} 27. Nf2 {[%clk 0:00:58.6]} 27... Nd7 {[%clk 0:01:32.6]}
28. Nd3 {[%clk 0:00:56.3]} 28... Nb6 {[%clk 0:01:31]} 29. c5 {[%clk 0:00:44.2]}
29... Nd7 {[%clk 0:01:09.3]} 30. Ng5 {[%clk 0:00:45.1]} 30... Rg8 {[%clk
0:01:10.6]} 31. Ne6+ {[%clk 0:00:25.5]} 31... Kb8 {[%clk 0:01:11.4]} 32. Nxg7
{[%clk 0:00:24.2]} 32... Rxg7 {[%clk 0:01:13.3]} 33. Ke3 {[%clk 0:00:21.3]}
33... Rg8 {[%clk 0:01:12.1]} 34. Ra4 {[%clk 0:00:22.2]} 34... Kc7 {[%clk
0:01:12.3]} 35. Rf4 {[%clk 0:00:23.5]} 35... Rf8 {[%clk 0:01:10.9]} 36. Ke4
{[%clk 0:00:24.8]} 36... Kd8 {[%clk 0:01:01.8]} 37. h4 {[%clk 0:00:24.7]} 37...
Ke8 {[%clk 0:01:02.8]} 38. g4 {[%clk 0:00:23.9]} 38... Rf7 {[%clk 0:01:00.5]}
39. g5 {[%clk 0:00:22.3]} 39... Nf8 {[%clk 0:01:00.9]} 40. Rxf7 {[%clk
0:00:19.2]} 40... Kxf7 {[%clk 0:01:01.8]} 41. Nf4 {[%clk 0:00:21.1]} 41... e6
{[%clk 0:00:45.9]} 42. Nd3 {[%clk 0:00:20.3]} 42... Nd7 {[%clk 0:00:43.8]} 43.
Kd4 {[%clk 0:00:21.2]} 43... Nb8 {[%clk 0:00:44.2]} 44. Kc4 {[%clk 0:00:21.6]}
44... Na6 {[%clk 0:00:45.2]} 45. c3 {[%clk 0:00:21.3]} 45... Ke7 {[%clk
0:00:43.5]} 46. Nb4 {[%clk 0:00:22.6]} 46... Nc7 {[%clk 0:00:44.1]} 47. Nd3
{[%clk 0:00:22.4]} 47... Nb5 {[%clk 0:00:39.2]} 48. Kb4 {[%clk 0:00:19.1]} 48...
Kd7 {[%clk 0:00:38.1]} 49. Kc4 {[%clk 0:00:17.3]} 49... Nc7 {[%clk 0:00:38]} 50.
Kd4 {[%clk 0:00:17.9]} 50... Nd5 {[%clk 0:00:38.3]} 51. c4 {[%clk 0:00:19.1]}
51... Ne7 {[%clk 0:00:39.6]} 52. Nf4 {[%clk 0:00:17.5]} 52... Nf5+ {[%clk
0:00:40.7]} 53. Ke4 {[%clk 0:00:17.5]} 53... Nxh4 {[%clk 0:00:42]} 54. Ne2
{[%clk 0:00:18.8]} 54... Nf5 {[%clk 0:00:40.2]} 55. Nf4 {[%clk 0:00:19.3]} 55...
Ng7 {[%clk 0:00:32.1]} 56. Nh3 {[%clk 0:00:20.3]} 56... Ne8 {[%clk 0:00:32.7]}
57. Nf2 {[%clk 0:00:20.6]} 57... Ke7 {[%clk 0:00:30.8]} 58. Ng4 {[%clk
0:00:21.8]} 58... Kf7 {[%clk 0:00:29.5]} 59. Ne3 {[%clk 0:00:23.1]} 59... Nc7
{[%clk 0:00:28.1]} 60. Nc2 {[%clk 0:00:24.1]} 60... Na6 {[%clk 0:00:28.7]} 61.
Kd4 {[%clk 0:00:25.6]} 61... Kg7 {[%clk 0:00:29.9]} 62. Ne3 {[%clk 0:00:27]}
62... h6 {[%clk 0:00:30.6]} 63. gxh6+ {[%clk 0:00:26.1]} 63... Kxh6 {[%clk
0:00:31.9]} 64. Ng4+ {[%clk 0:00:27.9]} 64... Kg5 {[%clk 0:00:32.3]} 65. Nf6
{[%clk 0:00:29.4]} 65... Kf4 {[%clk 0:00:29.1]} 66. Nd7 {[%clk 0:00:20.4]} 66...
g5 {[%clk 0:00:28.8]} 67. Nf8 {[%clk 0:00:21.7]} 67... Kf5 {[%clk 0:00:29.4]}
68. Nd7 {[%clk 0:00:21.1]} 68... g4 {[%clk 0:00:30.4]} 69. Nf6 {[%clk
0:00:22.5]} 69... Kf4 {[%clk 0:00:29.2]} 70. Nh5+ {[%clk 0:00:22]} 70... Kf3
{[%clk 0:00:30.4]} 71. Ng7 {[%clk 0:00:19.8]} 71... g3 {[%clk 0:00:31.3]} 72.
Nxe6 {[%clk 0:00:21.3]} 72... g2 {[%clk 0:00:32.4]} 73. Ng5+ {[%clk 0:00:22.9]}
73... Kg4 {[%clk 0:00:33.6]} 0-1

[Event "*** Titled Tuesday Blitz"]
[Site "Chess.com"]
[Date "2019.10.01"]
[Round "8"]
[White "ChessWarrior7197"]
[Black "eldur16"]
[Result "1-0"]
[WhiteElo "2904"]
[BlackElo "2627"]
[TimeControl "180+2"]
[EndTime "15:00:55 PDT"]
[Termination "ChessWarrior7197 won by resignation"]

1. e4 {[%clk 0:03:01.5]} 1... g6 {[%clk 0:03:00.8]} 2. d4 {[%clk 0:03:01.6]}
2... Bg7 {[%clk 0:03:01.9]} 3. Nc3 {[%clk 0:03:01.8]} 3... d6 {[%clk 0:03:03.1]}
4. h4 {[%clk 0:03:01.9]} 4... Nf6 {[%clk 0:02:58.9]} 5. Bg5 {[%clk 0:03:02.2]}
5... c6 {[%clk 0:02:58.5]} 6. Qd2 {[%clk 0:03:01.4]} 6... Nbd7 {[%clk
0:02:57.6]} 7. Bh6 {[%clk 0:03:02.2]} 7... Bxh6 {[%clk 0:02:57.3]} 8. Qxh6
{[%clk 0:03:04.1]} 8... e5 {[%clk 0:02:55.5]} 9. dxe5 {[%clk 0:03:04.2]} 9...
dxe5 {[%clk 0:02:55.8]} 10. O-O-O {[%clk 0:03:05.8]} 10... Qe7 {[%clk
0:02:55.4]} 11. f3 {[%clk 0:03:04.4]} 11... b5 {[%clk 0:02:55.2]} 12. Nce2
{[%clk 0:03:01.4]} 12... Bb7 {[%clk 0:02:54.6]} 13. Ng3 {[%clk 0:03:01.8]} 13...
O-O-O {[%clk 0:02:54.6]} 14. h5 {[%clk 0:03:03.3]} 14... Nc5 {[%clk 0:02:47.9]}
15. Be2 {[%clk 0:02:52]} 15... Rxd1+ {[%clk 0:02:46.8]} 16. Bxd1 {[%clk
0:02:53.9]} 16... Rd8 {[%clk 0:02:42.8]} 17. N1e2 {[%clk 0:02:53.5]} 17... Ne6
{[%clk 0:02:41.8]} 18. hxg6 {[%clk 0:02:53.4]} 18... fxg6 {[%clk 0:02:42.2]} 19.
Qe3 {[%clk 0:02:54.3]} 19... Kb8 {[%clk 0:02:37.9]} 20. c3 {[%clk 0:02:50.9]}
20... Qd6 {[%clk 0:02:30.5]} 21. Bc2 {[%clk 0:02:36.5]} 21... c5 {[%clk
0:02:19]} 22. Rd1 {[%clk 0:02:35.4]} 22... Qc7 {[%clk 0:02:19.6]} 23. Rxd8+
{[%clk 0:02:35.9]} 23... Qxd8 {[%clk 0:02:20.3]} 24. f4 {[%clk 0:02:34]} 24...
Qc7 {[%clk 0:01:57.5]} 25. f5 {[%clk 0:02:31.3]} 25... Nf4 {[%clk 0:01:58.4]}
26. Nf1 {[%clk 0:02:27.7]} 26... Nxe2+ {[%clk 0:01:48.4]} 27. Qxe2 {[%clk
0:02:28.7]} 27... c4 {[%clk 0:01:49.4]} 28. g4 {[%clk 0:02:27.7]} 28... gxf5
{[%clk 0:01:36.4]} 29. exf5 {[%clk 0:02:24.4]} 29... e4 {[%clk 0:01:37.4]} 30.
Ne3 {[%clk 0:02:21.9]} 30... Qf4 {[%clk 0:01:36.2]} 31. Kd2 {[%clk 0:02:20]}
31... h6 {[%clk 0:01:21.3]} 32. Ke1 {[%clk 0:02:09.9]} 32... Nd5 {[%clk
0:01:15.9]} 33. Nf1 {[%clk 0:01:49.1]} 33... e3 {[%clk 0:01:12.6]} 34. Qh2
{[%clk 0:01:49]} 34... Qxh2 {[%clk 0:01:06]} 35. Nxh2 {[%clk 0:01:50.9]} 35...
Nf4 {[%clk 0:01:06.3]} 36. f6 {[%clk 0:01:48.6]} 36... Bd5 {[%clk 0:01:02]} 37.
Nf1 {[%clk 0:01:49.1]} 37... Ng2+ {[%clk 0:00:54.8]} 38. Ke2 {[%clk 0:01:49.7]}
38... Be6 {[%clk 0:00:55.5]} 39. Bf5 {[%clk 0:01:49.5]} 39... Bxf5 {[%clk
0:00:37.5]} 40. gxf5 {[%clk 0:01:50.1]} 40... Nf4+ {[%clk 0:00:38.4]} 41. Kxe3
{[%clk 0:01:51.6]} 41... Nd5+ {[%clk 0:00:39.5]} 42. Kd4 {[%clk 0:01:52.1]}
42... Nxf6 {[%clk 0:00:40.2]} 43. Ke5 {[%clk 0:01:54]} 43... Nd7+ {[%clk
0:00:29.4]} 44. Ke6 {[%clk 0:01:53.9]} 44... Kc7 {[%clk 0:00:30.1]} 45. f6
{[%clk 0:01:55.3]} 45... h5 {[%clk 0:00:29.3]} 46. f7 {[%clk 0:01:49.8]} 46...
Kd8 {[%clk 0:00:28.8]} 47. Nh2 {[%clk 0:01:26.8]} 47... h4 {[%clk 0:00:29.7]}
48. Nf3 {[%clk 0:01:27.9]} 48... h3 {[%clk 0:00:30.8]} 49. Kd6 {[%clk
0:01:28.7]} 49... a6 {[%clk 0:00:26.6]} 50. Nh2 {[%clk 0:01:16.8]} 50... a5
{[%clk 0:00:17.6]} 51. a3 {[%clk 0:01:16]} 51... Nf8 {[%clk 0:00:17]} 52. Ng4
{[%clk 0:01:16.7]} 52... Ng6 {[%clk 0:00:15.6]} 53. Ne5 {[%clk 0:01:10.2]} 53...
Nf8 {[%clk 0:00:13.8]} 54. Nf3 {[%clk 0:01:10.5]} 54... Ng6 {[%clk 0:00:14.3]}
55. Kc5 {[%clk 0:01:10]} 55... Ke7 {[%clk 0:00:14.8]} 56. Kxb5 {[%clk
0:01:11.4]} 56... Ne5 {[%clk 0:00:15.9]} 57. Nh2 {[%clk 0:00:52]} 57... Kxf7
{[%clk 0:00:16.9]} 58. Kxa5 {[%clk 0:00:52.7]} 58... Ke6 {[%clk 0:00:18.1]} 59.
Kb5 {[%clk 0:00:53.2]} 59... Kf5 {[%clk 0:00:18.8]} 60. a4 {[%clk 0:00:54.2]}
60... Ng4 {[%clk 0:00:19.4]} 61. Nf1 {[%clk 0:00:54.4]} 61... Kf4 {[%clk
0:00:20.4]} 62. a5 {[%clk 0:00:55.3]} 62... Ne3 {[%clk 0:00:21.5]} 63. a6 {[%clk
0:00:56.1]} 63... Nxf1 {[%clk 0:00:20.7]} 64. a7 {[%clk 0:00:57.5]} 64... h2
{[%clk 0:00:21.4]} 65. a8=Q {[%clk 0:00:58.5]} 65... Ng3 {[%clk 0:00:22.6]} 66.
Qf8+ {[%clk 0:00:58.4]} 66... Kg4 {[%clk 0:00:23.6]} 67. Qc8+ {[%clk 0:00:53.8]}
67... Kf4 {[%clk 0:00:24.2]} 68. Qxc4+ {[%clk 0:00:53.7]} 68... Kf3 {[%clk
0:00:22.2]} 69. Qd3+ {[%clk 0:00:53.7]} 69... Kg2 {[%clk 0:00:22.5]} 70. Qd2+
{[%clk 0:00:54.5]} 70... Kg1 {[%clk 0:00:23.4]} 71. Qe1+ {[%clk 0:00:49.7]}
71... Nf1 {[%clk 0:00:24.5]} 72. Qe4 {[%clk 0:00:48.8]} 72... h1=Q {[%clk
0:00:24.9]} 73. Qxh1+ {[%clk 0:00:50.2]} 73... Kxh1 {[%clk 0:00:25.7]} 74. c4
{[%clk 0:00:52.1]} 74... Kg2 {[%clk 0:00:22.9]} 75. c5 {[%clk 0:00:53.3]} 75...
Ne3 {[%clk 0:00:21.4]} 76. c6 {[%clk 0:00:54.7]} 76... Nd5 {[%clk 0:00:22.4]}
77. Kc5 {[%clk 0:00:56.2]} 77... Nc7 {[%clk 0:00:23.4]} 78. b4 {[%clk
0:00:56.2]} 78... Na6+ {[%clk 0:00:23.3]} 79. Kd6 {[%clk 0:00:54.4]} 1-0

[Event "*** Titled Tuesday Blitz"]
[Site "Chess.com"]
[Date "2019.10.01"]
[Round "8"]
[White "Olga_Ustinova"]
[Black "anon132639"]
[Result "1/2-1/2"]
[WhiteElo "2378"]
[BlackElo "2678"]
[TimeControl "180+2"]
[EndTime "15:00:57 PDT"]
[Termination "Game drawn - insufficient material"]

1. d4 {[%clk 0:03:01.4]} 1... g6 {[%clk 0:02:59.5]} 2. Nf3 {[%clk 0:03:03.3]}
2... Bg7 {[%clk 0:03:01]} 3. Bf4 {[%clk 0:03:03.6]} 3... Nf6 {[%clk 0:03:01.7]}
4. e3 {[%clk 0:03:04.2]} 4... O-O {[%clk 0:03:03]} 5. h3 {[%clk 0:03:04.9]} 5...
d6 {[%clk 0:03:04.4]} 6. c3 {[%clk 0:03:05.6]} 6... Nfd7 {[%clk 0:03:05.8]} 7.
Be2 {[%clk 0:03:06.6]} 7... e5 {[%clk 0:03:07.1]} 8. dxe5 {[%clk 0:03:07.7]}
8... dxe5 {[%clk 0:03:07.6]} 9. Bh2 {[%clk 0:03:08.6]} 9... Nc6 {[%clk 0:03:06]}
10. O-O {[%clk 0:03:08.5]} 10... Nc5 {[%clk 0:02:59.6]} 11. Na3 {[%clk
0:03:08.2]} 11... Bf5 {[%clk 0:02:54.4]} 12. Qxd8 {[%clk 0:02:58.2]} 12... Raxd8
{[%clk 0:02:54.7]} 13. Rfd1 {[%clk 0:03:00.1]} 13... a6 {[%clk 0:02:02.4]} 14.
Nc4 {[%clk 0:02:59.8]} 14... f6 {[%clk 0:02:03.2]} 15. Kf1 {[%clk 0:02:52.5]}
15... b5 {[%clk 0:01:41.4]} 16. Rxd8 {[%clk 0:02:51.8]} 16... Rxd8 {[%clk
0:01:42]} 17. Ncd2 {[%clk 0:02:53.7]} 17... Rd7 {[%clk 0:01:00.9]} 18. g4 {[%clk
0:02:50.6]} 18... Bd3 {[%clk 0:00:52.2]} 19. Bxd3 {[%clk 0:02:38.6]} 19... Nxd3
{[%clk 0:00:54.1]} 20. b3 {[%clk 0:02:38.7]} 20... b4 {[%clk 0:00:48.7]} 21.
cxb4 {[%clk 0:02:20.5]} 21... Ncxb4 {[%clk 0:00:50.6]} 22. a3 {[%clk 0:02:17.7]}
22... Nd5 {[%clk 0:00:45.1]} 23. Nc4 {[%clk 0:02:16.2]} 23... e4 {[%clk
0:00:41]} 24. Ne1 {[%clk 0:02:16.8]} 24... f5 {[%clk 0:00:36.3]} 25. Rd1 {[%clk
0:02:15.5]} 25... Nc3 {[%clk 0:00:09.3]} 26. Rd2 {[%clk 0:02:10.4]} 26... Nb1
{[%clk 0:00:09.8]} 27. Rd1 {[%clk 0:02:10.1]} 27... Nc3 {[%clk 0:00:11.1]} 28.
Rd2 {[%clk 0:02:11.3]} 28... c6 {[%clk 0:00:05.5]} 29. Nxd3 {[%clk 0:02:04.7]}
29... exd3 {[%clk 0:00:07.4]} 30. Be5 {[%clk 0:02:04.4]} 30... Ne4 {[%clk
0:00:07.1]} 31. Rd1 {[%clk 0:01:58.4]} 31... fxg4 {[%clk 0:00:08]} 32. hxg4
{[%clk 0:01:57.8]} 32... Rf7 {[%clk 0:00:09.3]} 33. f4 {[%clk 0:01:54]} 33... d2
{[%clk 0:00:07.5]} 34. Ke2 {[%clk 0:01:49.7]} 34... Rd7 {[%clk 0:00:07.4]} 35.
Nxd2 {[%clk 0:01:44]} 35... Bxe5 {[%clk 0:00:04.8]} 36. Nxe4 {[%clk 0:01:43.6]}
36... Rxd1 {[%clk 0:00:06.7]} 37. Kxd1 {[%clk 0:01:45.5]} 37... Bb2 {[%clk
0:00:08.4]} 38. a4 {[%clk 0:01:46.1]} 38... h5 {[%clk 0:00:09.9]} 39. gxh5
{[%clk 0:01:45.7]} 39... gxh5 {[%clk 0:00:11.8]} 40. Kc2 {[%clk 0:01:47.5]}
40... Bg7 {[%clk 0:00:12.1]} 41. Kd3 {[%clk 0:01:45.7]} 41... Kf7 {[%clk
0:00:13.5]} 42. Ng5+ {[%clk 0:01:44.9]} 42... Kg6 {[%clk 0:00:12.9]} 43. Ke4
{[%clk 0:01:46.8]} 43... Bc3 {[%clk 0:00:13.1]} 44. Nh3 {[%clk 0:01:47.1]} 44...
h4 {[%clk 0:00:12.2]} 45. f5+ {[%clk 0:01:48]} 45... Kf6 {[%clk 0:00:13.6]} 46.
Kf4 {[%clk 0:01:49.3]} 46... Be5+ {[%clk 0:00:14.8]} 47. Kg4 {[%clk 0:01:50.2]}
47... Bg3 {[%clk 0:00:16.7]} 48. Nf4 {[%clk 0:01:48.2]} 48... Ke5 {[%clk
0:00:18.2]} 49. Ng6+ {[%clk 0:01:46.6]} 49... Ke4 {[%clk 0:00:15.9]} 50. Nxh4
{[%clk 0:01:46.1]} 50... Be5 {[%clk 0:00:17.3]} 51. Ng6 {[%clk 0:01:43.9]} 51...
Bf6 {[%clk 0:00:17.6]} 52. Nf8 {[%clk 0:01:37.3]} 52... Kxe3 {[%clk 0:00:17.7]}
53. Nd7 {[%clk 0:01:39.2]} 53... Bd4 {[%clk 0:00:17.4]} 54. Nb8 {[%clk
0:01:38.1]} 54... Kd3 {[%clk 0:00:14.6]} 55. Nxc6 {[%clk 0:01:36.1]} 55... Bf6
{[%clk 0:00:16.3]} 56. Nb4+ {[%clk 0:01:31.2]} 56... Kc3 {[%clk 0:00:16.7]} 57.
Nxa6 {[%clk 0:01:33.1]} 57... Kxb3 {[%clk 0:00:18.4]} 58. Nc5+ {[%clk
0:01:33.5]} 58... Kb4 {[%clk 0:00:18.3]} 59. Nd7 {[%clk 0:01:31.6]} 59... Bh8
{[%clk 0:00:17.2]} 60. Nb6 {[%clk 0:01:28.1]} 60... Ka5 {[%clk 0:00:18]} 61. Nd5
{[%clk 0:01:27.1]} 61... Kxa4 {[%clk 0:00:18.6]} 62. Kg5 {[%clk 0:01:29]} 62...
Kb5 {[%clk 0:00:19.5]} 63. Kg6 {[%clk 0:01:30.9]} 63... Kc6 {[%clk 0:00:19.5]}
64. Nf4 {[%clk 0:01:27.7]} 64... Bc3 {[%clk 0:00:17.7]} 65. Kf7 {[%clk
0:01:27.7]} 65... Kd6 {[%clk 0:00:18.7]} 66. Nd3 {[%clk 0:01:25.3]} 66... Kd5
{[%clk 0:00:19]} 67. Kg6 {[%clk 0:01:18.3]} 67... Ke4 {[%clk 0:00:19.8]} 68.
Nc5+ {[%clk 0:01:17.6]} 68... Kd5 {[%clk 0:00:20.2]} 69. Nd7 {[%clk 0:01:19.5]}
69... Bb2 {[%clk 0:00:19.3]} 70. Nf6+ {[%clk 0:01:21.4]} 70... Kd6 {[%clk
0:00:19.3]} 71. Ng4 {[%clk 0:01:20.8]} 71... Kd5 {[%clk 0:00:19.9]} 72. Kf7
{[%clk 0:01:14.8]} 72... Ba1 {[%clk 0:00:19.9]} 73. Ke7 {[%clk 0:01:15.8]} 73...
Ke4 {[%clk 0:00:20.3]} 74. Ke6 {[%clk 0:01:16.7]} 74... Bb2 {[%clk 0:00:20.9]}
75. Nf6+ {[%clk 0:01:16.9]} 75... Kf4 {[%clk 0:00:19.9]} 76. Nd5+ {[%clk
0:01:18]} 76... Ke4 {[%clk 0:00:21.2]} 77. Nb4 {[%clk 0:01:18.8]} 77... Ba1
{[%clk 0:00:20.8]} 78. Nc2 {[%clk 0:01:18.5]} 78... Bb2 {[%clk 0:00:21.8]} 79.
Nb4 {[%clk 0:01:19.1]} 79... Ba1 {[%clk 0:00:22.2]} 80. Nc6 {[%clk 0:01:19.9]}
80... Bb2 {[%clk 0:00:22.9]} 81. Ne7 {[%clk 0:01:20.9]} 81... Bc3 {[%clk
0:00:22.8]} 82. Nd5 {[%clk 0:01:22.8]} 82... Bb2 {[%clk 0:00:23.5]} 83. Nf6+
{[%clk 0:01:24.1]} 83... Kf4 {[%clk 0:00:23.9]} 84. Nd7 {[%clk 0:01:24.5]} 84...
Bd4 {[%clk 0:00:23.4]} 85. Nb8 {[%clk 0:01:24.1]} 85... Ke4 {[%clk 0:00:23.6]}
86. Nc6 {[%clk 0:01:26]} 86... Bc3 {[%clk 0:00:24.9]} 87. Ne5 {[%clk 0:01:27.9]}
87... Bxe5 {[%clk 0:00:25.6]} 88. f6 {[%clk 0:01:29.8]} 88... Bxf6 {[%clk
0:00:25.9]} 1/2-1/2